{"text_format":"1","workbook":"xlsx","n_sheets":11,"sheets":["Présentation","Impression","Feuille de match","Feuille de marque F1","Feuille de marque F2","Feuille de marque F3","Feuille de marque F4","Feuille de suivi","Déclaration FairPlay","Pense Bête","Bulletin de contestation"],"not_rendered":{"charts":0,"images":1,"macros":1,"external_links":0,"defined_names":11,"comments":0,"pivot_tables":0},"unopened":[],"bounds":{"document_bytes":16777216,"sheet_cells":100000,"rows_first":2000,"rows_last":500,"rows_between":2000,"halvings":0,"cell_chars":16384,"cell_head_chars":4096},"cells_cut":0,"cells_raw":0,"read":"whole","date_system":"1900"}

{"sheet":"Présentation","index":0,"n_rows":57,"n_cols":3,"rows_kept":57,"cut":false,"hidden":false,"merged":[[38,0,38,7],[1,0,1,7]]}
[]
["PAPETERIE SCRABBLE CLASSIQUE"]
[]
[null,"Vous allez organiser un tournoi de Scrabble Classique"]
[null,"La papeterie nécessaire est composée de 3 types de document :"]
[]
[null,"- La Feuille de Match (1 par match)"]
[null,null,"C'est la feuille sur laquelle les 2 joueurs d'un match inscrivent le résultat de celui-ci."]
[null,null,"Elle est remise à un arbitre en fin de match après signature des deux joueurs."]
[null,null,"S'assurer que les joueurs ont bien renseigné le N° de ronde et leur N° de table."]
[null,null,"Les joueurs portent également sur cette feuille, en cours de partie, les lettres représentées par les jokers."]
[null,null,"C'est uniquement grâce à cette feuille que l'arbitre encode le résultat du match sur le logiciel Sclassic :"]
[null,null,"les joueurs doivent la vérifier avant de signer (notamment les inversions de scores)."]
[]
[null,"- Le Bulletin de Contestation (environ 2-3 par match)"]
[null,null,"Le bulletin de contestaion n'est plus nécessaire s'il est mis à disposition des participants un ordinateur "]
[null,null,"équipé de Valmots, logiciel de vérification des mots. "]
[null,null,"En cas de contestation d'un mot (ou plusieurs mots) par un joueur, celui-ci doit écrire lisiblement le(s)"]
[null,null,"mot(s) contesté(s) sur ce bulletin, montrer ce bulletin à son adversaire pour qu'il vérifie que ce sont bien les"]
[null,null,"mots joués puis appeler un arbitre pour  vérification."]
[null,null,"L'arbitre vérifie que le numéro de table figure bien sur le bulletin, s'assure que le(s) mot(s) inscrit(s) figurent"]
[null,null,"sur la grille et va consulter l'ODS."]
[null,null,"Il inscrit sur le bulletin si le mot est admis ou non admis, et le rendra aux joueurs sans autre commentaire."]
[null,null,"Les joueurs doivent s'assurer que d'éventuelles contestations précédentes, portées sur le même bulletin, "]
[null,null,"sont clairement biffées."]
[]
[null,"- La Feuille de Marque (2 par match)"]
[null,null,"Les joueurs doivent disposer d'une feuille chacun par match. "]
[null,null,"C'est la feuille sur laquelle le joueur note le déroulement de la partie."]
[null,null,"Elle contient également la distribution des lettres du jeu, afin d'en tenir éventuellement le décompte."]
[null,null,"Cette feuille peut aussi servir de cache (les pointillés définissent une ligne de pliage)."]
[null,null,"À cet effet, il est conseillé d'utiliser du papier plus fort que le papier standard (au moins \"100 g\")."]
[null,null,"Chaque joueur doit obligatoirement y noter les mots joués par les 2 joueurs et leurs scores, ce qui permet"]
[null,null,"à l'arbitre de reconstituer la partie en cas de litige."]
[null,null,"Il est possible d'opter pour un des quatre formats proposés."]
[null,null,"Dans les formats 1 et 2, on raye les lettres jouées, dans les formats 3 et 4, on les coche."]
[null,null,"De plus le format 4 permet de tenir à jour le nombre de lettres disponibles dans le sac."]
[]
["Pour calculer le nombre de documents nécessaires et préparer leur impression cliquer ici"]
[]
[null,"Papeterie supplémentaire"]
[]
[null,"Les 3 documents suivants ne sont pas obligatoires mais amèneront un confort supplémentaire dans"]
[null,"le déroulement du tournoi."]
[]
[null,"- La Feuille de Suivi"]
[null,null,"Elle permet à chaque joueur de noter les détails de son parcours dans le tournoi match après match."]
[]
[null,"- La Déclaration de FairPlay"]
[null,null,"Cette déclaration doit être remplie par le joueur et rendue à l'organisateur en début de tournoi."]
[null,null,"Elle a deux objets : "]
[null,null,"- le joueur s'engage à disputer le tournoi jusqu'à son terme et à respecter règlement et fairplay."]
[null,null,"- l'organisateur peut se servir de cette fiche pour pointer les joueurs à leur arrivée."]
[]
[null,"- Le Pense-bête"]
[null,null,"Ce document d'une feuille recto répertorie la plupart des points de règlement du classique en compétition."]
[null,null,"Il est donné à chaque joueur en début de tournoi."]

{"sheet":"Impression","index":1,"n_rows":40,"n_cols":34,"rows_kept":40,"cut":false,"hidden":false,"merged":[[21,5,21,7],[23,5,23,7],[6,3,6,4]]}
["PAPETERIE SCRABBLE CLASSIQUE",null,null,null,null,null,null,null,null,null,null,null,null,null,null,null,null,null,null,null,null,null,null,null,null,null,"Formule de jeu"]
[null,null,null,null,null,null,null,null,null,null,null,null,null,null,null,null,null,null,null,null,null,null,null,null,null,null,"Classique","Classique","Open 8 rondes","Open 10 rondes","Masters championnat","Masters coupe","Championnat de France","Championnat du Monde"]
["La quantité minimum nécessaire pour votre tournoi",null,null,null,null,null,null,null,null,null,null,null,null,null,null,null,null,null,null,null,null,null,null,null,null,null,"Open 8 rondes",{"$f":"IF($D$7=AB2,IF($F$5<8,$F$5-1,IF($F$5<16,5,IF($F$5<32,5,IF($F$5<64,6,7)))),0)","v":5},{"$f":"IF($D$7=AC2,8,0)","v":0},{"$f":"IF($D$7=AD2,10,0)","v":0},{"$f":"IF($D$7=AE2,7,0)","v":0},{"$f":"IF($D$7=AF2,3,0)","v":0},{"$f":"IF($D$7=AG2,21,0)","v":0},{"$f":"IF($D$7=AH2,17,0)","v":0}]
[null,null,null,null,null,null,null,null,null,null,null,null,null,null,null,null,null,null,null,null,null,null,null,null,null,null,"Open 10 rondes"]
[null,"Indiquez le nombre de joueurs attendus :",null,null,null,30,null,null,null,null,null,null,null,null,null,null,null,null,null,null,null,null,null,null,null,null,"Masters championnat"]
[null,null,null,null,null,null,null,null,null,null,null,null,null,null,null,null,null,null,null,null,null,null,null,null,null,null,"Masters coupe"]
[null,null,"Choisissez la formule de jeu","Classique",null,"et disputer",{"$f":"SUM(AB3:AH3)","v":5},"rondes",null,null,null,null,null,null,null,null,null,null,null,null,null,null,null,null,null,null,"Championnat de France"]
[null,null,null,null,null,null,null,null,null,null,null,null,null,null,null,null,null,null,null,null,null,null,null,null,null,null,"Championnat du Monde"]
[null,"Nombre minimum de documents nécessaires"]
[null,null,"Feuilles de match",{"$f":"(F5/2)*G7","v":75},"Bulletins\n de contestation",{"$f":"D10*2.5","v":187.5},"Feuilles de marque",{"$f":"D10*2","v":150}]
[null,null,"Documents facultatifs mais conseillés"]
[null,null,"Feuilles de suivi",{"$f":"F5","v":30},"Déclaration\nde Fairplay",{"$f":"F5","v":30},"Pense-bête",{"$f":"F5","v":30}]
[]
[null,"Nombre d'impressions à demander"]
[null,null,"Feuilles de match     (4 par page)",{"$f":"ROUNDUP(D10/4,0)","v":19},"Bulletins de contestation (12 par page)",{"$f":"ROUNDUP(F10/12,0)","v":16},"Feuilles de marque     (1 par page)",{"$f":"H10","v":150}]
[null,null,"Documents facultatifs mais conseillés"]
[null,null,"Feuilles de suivi\n(1 par feuille)",{"$f":"D12","v":30},"Déclaration de Fairplay\n(8 par feuille)",{"$f":"ROUNDUP(F5/8,0)","v":4},"Pense-bête\n(1 par feuille)\n(1 par feuille)",{"$f":"F5","v":30}]
[]
[]
["Demande d'impression"]
[]
[null,null,"Indiquez","le nom du Club organisateur",null,"Club"]
[]
[null,null,null,"le nom du tournoi",null,"Tournoi classique de"]
[null,null,null,"Ces informations figureront en en-tête de toute la papeterie"]
[]
["Il est conseillé d'utiliser du papier de couleurs différentes pour chacun des 3 types de document."]
["Il sera ainsi plus confortable pour l'arbitre de repérer les Bulletins de contestation et les Feuilles de match."]
["Utilisez par exemple :"]
["Feuille de Match",null,null,"une couleur froide (bleu, vert)",null,null,"Imprimer les Feuilles de Match"]
["Bulletin de Contestation",null,null,"une couleur chaude (jaune, rouge, orange)",null,null,"Imprimer les Bulletins de Contestation"]
["Feuille de Marque format 1",null,null,"blanc",null,null,"Imprimer les Feuilles de Marque"]
["Feuille de Marque format 2",null,null,"blanc",null,null,"Imprimer les Feuilles de Marque"]
[]
[null,null,null,null,"Retour à la présentation"]
[]
["Les documents facultatifs mais conseillés"]
["Feuille de Suivi",null,null,"blanc",null,null,"Imprimer les Feuilles de Suivi"]
["Déclaration de FairPlay",null,null,"blanc",null,null,"Imprimer les Déclarations de FairPlay"]
["Pense-bête",null,null,"blanc",null,null,"Imprimer les Pense-bêtes"]

{"sheet":"Feuille de match","index":2,"n_rows":31,"n_cols":17,"rows_kept":31,"cut":false,"hidden":false,"merged":[[27,4,28,4],[27,13,28,13],[22,14,22,16],[5,14,5,16],[8,11,8,15],[25,11,25,15],[25,2,25,6],[10,4,11,4],[10,13,11,13],[5,1,5,3],[5,5,5,7],[8,2,8,6],[5,10,5,12],[22,1,22,3],[22,5,22,7],[22,10,22,12]]}
[null,{"$f":"Impression!$F$24","v":"Tournoi classique de"},null,null,null,null,null,{"$f":"Impression!$F$22","v":"Club"},null,null,{"$f":"Impression!$F$24","v":"Tournoi classique de"},null,null,null,null,null,{"$f":"Impression!$F$22","v":"Club"}]
[null,"FEUILLE DE MATCH",null,null,null,null,"RONDE n°",null,null,null,"FEUILLE DE MATCH",null,null,null,null,"RONDE n°"]
[]
[null,"Jokers",null,null,null,null,"TABLE n°",null,null,null,"Jokers",null,null,null,null,"TABLE n°"]
[]
[null," NOM (joueur qui débute)",null,null,null,"NOM",null,null,null,null," NOM (joueur qui débute)",null,null,null,"NOM"]
[]
[]
[null,null,"Résultats",null,null,null,null,null,null,null,null,"Résultats"]
[]
[]
[null,"Pts",null,null,null,null,null,"Pts",null,null,"Pts",null,null,null,null,null,"Pts"]
[null,null,null,null,"Différence de scores",null,null,null,null,null,null,null,null,"Différence de scores"]
[null,"Signature",null,null,null,null,null,"Signature",null,null,"Signature",null,null,null,null,null,"Signature"]
[]
[]
[]
[null,{"$f":"Impression!$F$24","v":"Tournoi classique de"},null,null,null,null,null,{"$f":"Impression!$F$22","v":"Club"},null,null,{"$f":"Impression!$F$24","v":"Tournoi classique de"},null,null,null,null,null,{"$f":"Impression!$F$22","v":"Club"}]
[null,"FEUILLE DE MATCH",null,null,null,null,"RONDE n°",null,null,null,"FEUILLE DE MATCH",null,null,null,null,"RONDE n°"]
[]
[null,"Jokers",null,null,null,null,"TABLE n°",null,null,null,"Jokers",null,null,null,null,"TABLE n°"]
[]
[null," NOM (joueur qui débute)",null,null,null,"NOM",null,null,null,null," NOM (joueur qui débute)",null,null,null,"NOM"]
[]
[]
[null,null,"Résultats",null,null,null,null,null,null,null,null,"Résultats"]
[]
[]
[null,"Pts",null,null,null,null,null,"Pts",null,null,"Pts",null,null,null,null,null,"Pts"]
[null,null,null,null,"Différence de scores",null,null,null,null,null,null,null,null,"Différence de scores"]
[null,"Signature",null,null,null,null,null,"Signature",null,null,"Signature",null,null,null,null,null,"Signature"]

{"sheet":"Feuille de marque F1","index":3,"n_rows":41,"n_cols":11,"rows_kept":41,"cut":false,"hidden":false,"merged":[[0,0,7,2]]}
[null,null,null,null,null,null,null,null,null,null,{"$f":"Impression!F24","v":"Tournoi classique de"}]
[null,null,null,null,null,null,null,null,null,null,{"$f":"Impression!F22","v":"Club"}]
[]
[]
[null,null,null,null,null,null,null,null,"Date :"]
[]
[null,null,null,null,null,null,null,null,"Ronde n° :"]
[]
["FEUILLE DE MARQUE"]
[]
[]
[null,null,null,null,null,null," NOM  adversaire :"]
[]
[]
["Pliez ici pour faire un cache"]
[]
["A A A  E E E E E  I I I  O O  U U   L L  N N  R R  S S  T T   B B    C C  D D D  J K Q"]
["A A A  E E E E E  I I I  O O  U U   L L  N N  R R  S S  T T   F F    G G  H H    W X Y"]
["A A A  E E E E E  I I    O O  U U   L    N N  R R  S S  T T   M M M  P P  V V    Z ? ?"]
[]
["n°","Tirage","Mot Joué","Place","Points","Cumul","Mot adversaire","Place","Points","Cumul","commentaires"]
[1]
[2]
[3]
[4]
[5]
[6]
[7]
[8]
[9]
[10]
[11]
[12]
[13]
[14]
[15]
[16]
[17]
[18]
[null,null,null,"+ / -",null,null,null,"+ / -"]
[null,null,null,"Score final",null,null,null,"Score final"]

{"sheet":"Feuille de marque F2","index":4,"n_rows":49,"n_cols":8,"rows_kept":49,"cut":false,"hidden":false,"merged":[[20,2,20,3],[20,6,20,7],[0,5,0,7],[1,5,1,7],[16,2,16,3],[16,6,16,7],[18,2,18,3],[18,6,18,7]]}
[null,null,null,null,null,{"$f":"Impression!F24","v":"Tournoi classique de"}]
[null,null,null,null,null,{"$f":"Impression!F22","v":"Club"}]
[]
[]
[]
[]
[null,null,null,null,null,null,"DATE"]
[null,"FEUILLE  DE MARQUE"]
[]
[]
[null,"NOM DE L'ADVERSAIRE",null,null,null,null,"TABLE","RONDE"]
[]
[]
[]
["Pliez ici pour faire un cache"]
[]
[null,"A A A A A A A A A","i   i   i   i   i   i   i   i",null,null,"L  L  L  L  L  ","S  S  S  S  S  S  "]
[]
[null,"E E E E E E E E E","O  O  O  O  O  O ",null,null,"N  N  N  N  N  N","T  T  T  T  T  T"]
[]
[null,"E E E E E E   ","U  U  U  U  U  U",null,null,"R  R  R  R  R  R","J  K  Q  W  X  Y  Z"]
[]
[null,"B  B   C  C   D  D  D   F  F   G  G   H  H",null,null,null,"M  M  M    P  P   V  V",null,"?  ?"]
[]
[null,"MOT JOUE","POINTS","CUMUL",null,"MOT ADVERSAIRE","POINTS","CUMUL"]
[1]
[2]
[3]
[4]
[5]
[6]
[7]
[8]
[9]
[10]
[11]
[12]
[13]
[14]
[15]
[16]
[17]
[18]
[19]
[20]
[null,null,"+ / -",null,null,null,"+ / -"]
[null,"  PENALITES EN MOINS",null,null,null,"  PENALITES EN MOINS"]
[]
[null,"SCORE FINAL",null,null,null,"SCORE FINAL"]

{"sheet":"Feuille de marque F3","index":5,"n_rows":53,"n_cols":34,"rows_kept":53,"cut":false,"hidden":false,"merged":[[0,19,0,35],[1,19,1,35]]}
[null,null,null,null,null,null,null,null,null,null,null,null,null,null,null,null,null,null,null,{"$f":"Impression!F24","v":"Tournoi classique de"}]
[null,null,null,null,null,null,null,null,null,null,null,null,null,null,null,null,null,null,null,{"$f":"Impression!F22","v":"Club"}]
[]
[]
[]
[]
[null,null,null,null,null,null,null,null,null,null,null,null,null,null,null,null,null,null,null,null,null,null,null,null,null,null,null,null,"DATE"]
[null,"FEUILLE  DE MARQUE"]
[]
[]
[null,"NOM DE L'ADVERSAIRE",null,null,null,null,null,null,null,null,null,null,null,null,null,null,null,null,null,null,null,null,null,null,null,null,null,null,"TABLE",null,null,null,"RONDE"]
[]
[]
[]
["Pliez ici pour faire un cache"]
[]
[null,"A",null,null,null,null,null,null,null,null,null,null,null,null,null,null,null,null,null,"L",null,null,null,null,null,null,null,null,"B",null,null,null,"H"]
[]
[null,"E",null,null,null,null,null,null,null,null,null,null,null,null,null,null,null,null,null,"N",null,null,null,null,null,null,null,null,"C",null,null,null,"M"]
[]
[null,"I",null,null,null,null,null,null,null,null,null,null,null,null,null,null,null,null,null,"R",null,null,null,null,null,null,null,null,"D",null,null,null,"P"]
[]
[null,"O",null,null,null,null,null,null,null,null,null,null,null,null,null,null,null,null,null,"S",null,null,null,null,null,null,null,null,"F",null,null,null,"V"]
[]
[null,"U",null,null,null,null,null,null,null,null,null,null,null,null,null,null,null,null,null,"T",null,null,null,null,null,null,null,null,"G",null,null,null,"?"]
[]
[null,null,null,null,null,null,null,null,null,null,null,null,null,null,null,null,null,null,null,null,null,"J",null,"K",null,"Q",null,"W",null,"X",null,"Y",null,"Z"]
[]
[null,"MOT JOUE",null,null,null,null,null,null,null,null,"POINTS",null,null,null,"CUMUL",null,null,null,null,"MOT ADVERSAIRE",null,null,null,null,null,null,null,null,"POINTS",null,null,null,"CUMUL"]
[1]
[2]
[3]
[4]
[5]
[6]
[7]
[8]
[9]
[10]
[11]
[12]
[13]
[14]
[15]
[16]
[17]
[18]
[19]
[20]
[null,null,null,null,null,null,null,null,null,null,"+ / -",null,null,null,null,null,null,null,null,null,null,null,null,null,null,null,null,null,"+ / -"]
[null,"  PENALITES EN MOINS",null,null,null,null,null,null,null,null,null,null,null,null,null,null,null,null,null,"  PENALITES EN MOINS"]
[]
[null,"SCORE FINAL",null,null,null,null,null,null,null,null,null,null,null,null,null,null,null,null,null,"SCORE FINAL"]

{"sheet":"Feuille de marque F4","index":6,"n_rows":53,"n_cols":36,"rows_kept":53,"cut":false,"hidden":false,"merged":[[0,21,0,37],[1,21,1,37]]}
[null,null,null,null,null,null,null,null,null,null,null,null,null,null,null,null,null,null,null,null,null,{"$f":"Impression!F24","v":"Tournoi classique de"}]
[null,null,null,null,null,null,null,null,null,null,null,null,null,null,null,null,null,null,null,null,null,{"$f":"Impression!F22","v":"Club"}]
[]
[]
[]
[]
[null,null,null,null,null,null,null,null,null,null,null,null,null,null,null,null,null,null,null,null,null,null,null,null,null,null,null,null,null,null,"DATE"]
[null,"FEUILLE  DE MARQUE"]
[]
[]
[null,"NOM DE L'ADVERSAIRE",null,null,null,null,null,null,null,null,null,null,null,null,null,null,null,null,null,null,null,null,null,null,null,null,null,null,null,null,"TABLE",null,null,null,"RONDE"]
[]
[]
[]
["Pliez ici pour faire un cache"]
[]
[null,"A",null,null,null,null,null,null,null,null,null,null,null,null,null,null,null,null,null,null,null,"L",null,null,null,null,null,null,null,null,"B",null,null,null,"H"]
[]
[null,"E",null,null,null,null,null,null,null,null,null,null,null,null,null,null,null,null,null,null,null,"N",null,null,null,null,null,null,null,null,"C",null,null,null,"M"]
[]
[null,"I",null,null,null,null,null,null,null,null,null,null,null,null,null,null,null,null,null,null,null,"R",null,null,null,null,null,null,null,null,"D",null,null,null,"P"]
[]
[null,"O",null,null,null,null,null,null,null,null,null,null,null,null,null,null,null,null,null,null,null,"S",null,null,null,null,null,null,null,null,"F",null,null,null,"V"]
[]
[null,"U",null,null,null,null,null,null,null,null,null,null,null,null,null,null,null,null,null,null,null,"T",null,null,null,null,null,null,null,null,"G",null,null,null,"?"]
[]
[null,null,null,null,null,null,null,null,null,null,null,null,null,null,null,null,null,null,null,"SAC",null,null,null,"J",null,"K",null,"Q",null,"W",null,"X",null,"Y",null,"Z"]
[]
[null,"MOT JOUE",null,null,null,null,null,null,null,null,"POINTS",null,null,null,"CUMUL",null,null,null,null,88,null,"MOT ADVERSAIRE",null,null,null,null,null,null,null,null,"POINTS",null,null,null,"CUMUL"]
[1]
[2]
[3]
[4]
[5]
[6]
[7]
[8]
[9]
[10]
[11]
[12]
[13]
[14]
[15]
[16]
[17]
[18]
[19]
[20]
[null,null,null,null,null,null,null,null,null,null,"+ / -",null,null,null,null,null,null,null,null,null,null,null,null,null,null,null,null,null,null,null,"+ / -"]
[null,"  PENALITES EN MOINS",null,null,null,null,null,null,null,null,null,null,null,null,null,null,null,null,null,null,null,"  PENALITES EN MOINS"]
[]
[null,"SCORE FINAL",null,null,null,null,null,null,null,null,null,null,null,null,null,null,null,null,null,null,null,"SCORE FINAL"]

{"sheet":"Feuille de suivi","index":7,"n_rows":29,"n_cols":27,"rows_kept":29,"cut":false,"hidden":false,"merged":[[28,0,28,12],[4,0,5,0],[4,1,5,1],[4,8,5,8],[4,9,5,9],[4,10,5,10],[4,11,5,11],[4,12,5,12]]}
[null,null,null,null,null,null,null,null,null,null,null,null,{"$f":"Impression!F24","v":"Tournoi classique de"},null,null,null,null,null,null,null,null,null,null,null,null,null,"NbRondes"]
[null,null,null,null,null,null,null,null,null,null,null,null,{"$f":"Impression!F22","v":"Club"},null,null,null,null,null,null,null,null,null,null,null,null,null,{"$f":"Impression!G7","v":5}]
[null,null,null,null,"Feuille de suivi"]
[]
["R","Adversaire","Score",null,"Points Match",null,"Diff. scores",null,"Clast","D","NJ","NS","Meilleurs mots / remarques"]
[null,null,"Pers.","Adv.","Ronde","Cumul","Ronde","Cumul"]
[1]
[2]
[3]
[4]
[5]
[6]
[7]
[8]
[9]
[10]
[11]
[12]
[13]
[14]
[15]
[16]
[17]
[18]
[19]
[20]
[21]
[]
["R : Numéro de la ronde. Points de match : victoire 3, nul 2, défaite 1, forfait 0. Différence de scores (maximum +/- 100, +50 en cas de victoire par forfait, -100 en cas de forfait). Clast : classement général après la ronde. D : X si début de partie. NJ : nombre de jokers. NS : nombre de scrabbles."]

{"sheet":"Déclaration FairPlay","index":8,"n_rows":32,"n_cols":2,"rows_kept":32,"cut":false,"hidden":false,"merged":[]}
[{"$f":"Impression!$F$24","v":"Tournoi classique de"},{"$f":"Impression!$F$24","v":"Tournoi classique de"}]
[{"$f":"Impression!$F$22","v":"Club"},{"$f":"Impression!$F$22","v":"Club"}]
[" Nom :"," Nom :"]
[" Prénom :"," Prénom :"]
[" Fédération :"," Fédération :"]
[{"$f":"\"Je soussigné(e), désire participer, jusqu’à son terme, au \"&Impression!$F$24&Impression!$F$22&\".\"","v":"Je soussigné(e), désire participer, jusqu’à son terme, au Tournoi classique deClub."},{"$f":"\"Je soussigné(e), désire participer, jusqu’à son terme, au \"&Impression!$F$24&Impression!$F$22&\".\"","v":"Je soussigné(e), désire participer, jusqu’à son terme, au Tournoi classique deClub."}]
["Je serai courtois avec mes adversaires et les arbitres, je veillerai à rester particulièrement discret afin de ne pas perturber les autres joueurs. Dans tous les cas, je m’engage solennellement à jouer franc-jeu, à appliquer le règlement et ne jamais chercher à le contourner.","Je serai courtois avec mes adversaires et les arbitres, je veillerai à rester particulièrement discret afin de ne pas perturber les autres joueurs. Dans tous les cas, je m’engage solennellement à jouer franc-jeu, à appliquer le règlement et ne jamais chercher à le contourner."]
["Signature :","Signature :"]
[{"$f":"Impression!$F$24","v":"Tournoi classique de"},{"$f":"Impression!$F$24","v":"Tournoi classique de"}]
[{"$f":"Impression!$F$22","v":"Club"},{"$f":"Impression!$F$22","v":"Club"}]
[" Nom :"," Nom :"]
[" Prénom :"," Prénom :"]
[" Fédération :"," Fédération :"]
[{"$f":"\"Je soussigné(e), désire participer, jusqu’à son terme, au \"&Impression!$F$24&Impression!$F$22&\".\"","v":"Je soussigné(e), désire participer, jusqu’à son terme, au Tournoi classique deClub."},{"$f":"\"Je soussigné(e), désire participer, jusqu’à son terme, au \"&Impression!$F$24&Impression!$F$22&\".\"","v":"Je soussigné(e), désire participer, jusqu’à son terme, au Tournoi classique deClub."}]
["Je serai courtois avec mes adversaires et les arbitres, je veillerai à rester particulièrement discret afin de ne pas perturber les autres joueurs. Dans tous les cas, je m’engage solennellement à jouer franc-jeu, à appliquer le règlement et ne jamais chercher à le contourner.","Je serai courtois avec mes adversaires et les arbitres, je veillerai à rester particulièrement discret afin de ne pas perturber les autres joueurs. Dans tous les cas, je m’engage solennellement à jouer franc-jeu, à appliquer le règlement et ne jamais chercher à le contourner."]
["Signature :","Signature :"]
[{"$f":"Impression!$F$24","v":"Tournoi classique de"},{"$f":"Impression!$F$24","v":"Tournoi classique de"}]
[{"$f":"Impression!$F$22","v":"Club"},{"$f":"Impression!$F$22","v":"Club"}]
[" Nom :"," Nom :"]
[" Prénom :"," Prénom :"]
[" Fédération :"," Fédération :"]
[{"$f":"\"Je soussigné(e), désire participer, jusqu’à son terme, au \"&Impression!$F$24&Impression!$F$22&\".\"","v":"Je soussigné(e), désire participer, jusqu’à son terme, au Tournoi classique deClub."},{"$f":"\"Je soussigné(e), désire participer, jusqu’à son terme, au \"&Impression!$F$24&Impression!$F$22&\".\"","v":"Je soussigné(e), désire participer, jusqu’à son terme, au Tournoi classique deClub."}]
["Je serai courtois avec mes adversaires et les arbitres, je veillerai à rester particulièrement discret afin de ne pas perturber les autres joueurs. Dans tous les cas, je m’engage solennellement à jouer franc-jeu, à appliquer le règlement et ne jamais chercher à le contourner.","Je serai courtois avec mes adversaires et les arbitres, je veillerai à rester particulièrement discret afin de ne pas perturber les autres joueurs. Dans tous les cas, je m’engage solennellement à jouer franc-jeu, à appliquer le règlement et ne jamais chercher à le contourner."]
["Signature :","Signature :"]
[{"$f":"Impression!$F$24","v":"Tournoi classique de"},{"$f":"Impression!$F$24","v":"Tournoi classique de"}]
[{"$f":"Impression!$F$22","v":"Club"},{"$f":"Impression!$F$22","v":"Club"}]
[" Nom :"," Nom :"]
[" Prénom :"," Prénom :"]
[" Fédération :"," Fédération :"]
[{"$f":"\"Je soussigné(e), désire participer, jusqu’à son terme, au \"&Impression!$F$24&Impression!$F$22&\".\"","v":"Je soussigné(e), désire participer, jusqu’à son terme, au Tournoi classique deClub."},{"$f":"\"Je soussigné(e), désire participer, jusqu’à son terme, au \"&Impression!$F$24&Impression!$F$22&\".\"","v":"Je soussigné(e), désire participer, jusqu’à son terme, au Tournoi classique deClub."}]
["Je serai courtois avec mes adversaires et les arbitres, je veillerai à rester particulièrement discret afin de ne pas perturber les autres joueurs. Dans tous les cas, je m’engage solennellement à jouer franc-jeu, à appliquer le règlement et ne jamais chercher à le contourner.","Je serai courtois avec mes adversaires et les arbitres, je veillerai à rester particulièrement discret afin de ne pas perturber les autres joueurs. Dans tous les cas, je m’engage solennellement à jouer franc-jeu, à appliquer le règlement et ne jamais chercher à le contourner."]
["Signature :","Signature :"]

{"sheet":"Pense Bête","index":9,"n_rows":44,"n_cols":2,"rows_kept":44,"cut":false,"hidden":false,"merged":[]}
[{"$f":"Impression!F24&\" \"&Impression!F22&\" -  Pense-bête\"","v":"Tournoi classique de Club -  Pense-bête"}]
["Qui commence ?","Comment piocher les lettres ?"]
["Dans cette compétition, c’est l’organisateur qui m’indique lequel des deux joueurs commence.","Je lève le sac au-dessus de la ligne des yeux."]
[null,"J’extrais les lettres une par une."]
[null,"Je les dépose sur la table, au fur et à mesure, faces cachées, puis je les place sur ma réglette, qui doit être visible par mon adversaire."]
["Cas particulier du début de partie","Comment jouer un mot ?"]
["Si c’est à moi de commencer.","Je pose les lettres sur la grille."]
["J’extrais sept lettres.","Je ne prononce pas le mot."]
["Je les dépose faces cachées sur la table.","J’annonce clairement le score."]
["Je ne les regarde pas.","Je tourne doucement la grille face à l’adversaire."]
["Je passe le sac.","J’appuie sur la pendule."]
["J’attends que mon adversaire pioche ses sept lettres.","Je prends le sac."]
["Qu’il dépose, lui aussi, faces cachées.","J’extrais les lettres, une par une, pour compléter mon jeu."]
["Lorsqu’il a fini de piocher il déclenche la pendule.","Je les dépose au fur et à mesure, sur la table, faces cachées."]
["Alors nous pouvons regarder nos lettres.","Lorsque j’ai fini de piocher je place mes lettres sur la réglette."]
["À quel moment contester ?","Comment contester ?"]
["Dès que l’adversaire a appuyé sur la pendule.","Je dis : « JE CONTESTE »."]
["Et avant qu’il ait retourné une lettre piochée.","Je dois absolument employer cette formulation."]
["Donc je peux encore contester lorsqu’il est en train de piocher.","Toute autre phrase n’a aucune incidence."]
[null,"Je mets la pendule sur PAUSE."]
[null,"Je remplis un bulletin de contestation."]
[null,"J’appelle l’arbitre."]
[null,"L’arbitre vérifie auprès des deux joueurs que le mot vient d’être joué."]
[null,"L’arbitre remplit le bulletin et indique la sanction : moins 5 par mot contesté à tort."]
["Le joker","Si un mot contesté est non admis, le joueur fautif reprend ses lettres et passe son tour. Le cas échéant, il remet dans le sac les lettres qu’il avait commencé de piocher."]
["Lorsque je place un joker, j’annonce clairement la lettre qu’il remplace à l’aide du pays associé (ex. : Tunisie T) et j’inscris la lettre représentée par le joker sur la feuille de match."]
["Je n’écris pas sur le joker qui doit rester propre."]
["Mon adversaire est responsable de la vérification du joker, il peut retourner la lettre pour s'assurer qu'il s'agit bien d'un joker (5 points de pénalité et contestation possible s'il s'agit d'une autre lettre posée à l'envers)."]
["Comment changer de lettres ?","La feuille de marque "]
["Je vérifie qu’il reste au moins 7 lettres dans le sac et ceci même si je veux en changer moins de 7.","Les rubriques que je suis obligé de compléter :"]
["J’annonce : « JE CHANGE x LETTRES »","Mon mot joué et les points qu’il fait."]
["Je dégage de la réglette les x lettres que je désire changer.","Le mot adverse et les points qu’il fait."]
["Je les pose faces cachées sur la table.","Les autres rubriques sont facultatives en cours de partie."]
["Je tourne la grille face à l’adversaire."]
["J’appuie sur la pendule."]
["Je pioche x lettres du sac."]
["Je remets dans le sac les x lettres rejetées.","Problèmes divers"]
[null,"Lettre tirée en trop ou questions diverses :"]
[null,"Je mets la pendule sur PAUSE."]
[null,"J’appelle l’arbitre."]
["Désaccord sur le score d’un mot","Fin de partie"]
["Je peux le dire tout de suite et on se met d’accord rapidement","Le vainqueur signe la feuille de match et la fait signer par le perdant (qui la vérifie). Il la remet à un arbitre. Seule la feuille de match fait foi en cas de litige.Les joueurs disposent les lettres en carré sur la grille pour la ronde suivante."]
["Je peux attendre la fin de la partie"]
["Si le désaccord persiste, j’appelle l’arbitre."]

{"sheet":"Bulletin de contestation","index":10,"n_rows":41,"n_cols":12,"rows_kept":41,"cut":false,"hidden":false,"merged":[[36,1,36,2],[36,8,36,9],[29,8,29,9],[29,1,29,2],[28,0,28,5],[28,7,28,12],[35,0,35,5],[35,7,35,12],[0,0,0,5],[0,7,0,12],[7,7,7,12],[7,0,7,5],[21,7,21,12],[21,0,21,5],[22,1,22,2],[1,1,1,2],[8,1,8,2],[8,8,8,9],[15,8,15,9],[15,1,15,2],[1,8,1,9],[22,8,22,9],[14,0,14,5],[14,7,14,12]]}
[{"$f":"Impression!$F$24 & \" - \" & Impression!$F$22","v":"Tournoi classique de - Club"},null,null,null,null,null,null,{"$f":"Impression!$F$24 & \" - \" & Impression!$F$22","v":"Tournoi classique de - Club"}]
[null,"BULLETIN DE CONTESTATION",null,"TABLE ",null,null,null,null,"BULLETIN DE CONTESTATION",null,"TABLE "]
[null,"Mot(s) contesté(s)",null,null,null,null,null,null,"Mot(s) contesté(s)"]
[null,"1)  ……………….",null,"Admis","Non Admis",null,null,null,"1)  ……………….",null,"Admis","Non Admis"]
[null,"2)  ……………….",null,"Admis","Non Admis",null,null,null,"2)  ……………….",null,"Admis","Non Admis"]
[null,"3)  ……………….",null,"Admis","Non Admis",null,null,null,"3)  ……………….",null,"Admis","Non Admis"]
[]
[{"$f":"Impression!$F$24 & \" - \" & Impression!$F$22","v":"Tournoi classique de - Club"},null,null,null,null,null,null,{"$f":"Impression!$F$24 & \" - \" & Impression!$F$22","v":"Tournoi classique de - Club"}]
[null,"BULLETIN DE CONTESTATION",null,"TABLE ",null,null,null,null,"BULLETIN DE CONTESTATION",null,"TABLE "]
[null,"Mot(s) contesté(s)",null,null,null,null,null,null,"Mot(s) contesté(s)"]
[null,"1)…………………….",null,"Admis","Non Admis",null,null,null,"1)…………………….",null,"Admis","Non Admis"]
[null,"2)…………………….",null,"Admis","Non Admis",null,null,null,"2)…………………….",null,"Admis","Non Admis"]
[null,"3)…………………….",null,"Admis","Non Admis",null,null,null,"3)…………………….",null,"Admis","Non Admis"]
[]
[{"$f":"Impression!$F$24 & \" - \" & Impression!$F$22","v":"Tournoi classique de - Club"},null,null,null,null,null,null,{"$f":"Impression!$F$24 & \" - \" & Impression!$F$22","v":"Tournoi classique de - Club"}]
[null,"BULLETIN DE CONTESTATION",null,"TABLE ",null,null,null,null,"BULLETIN DE CONTESTATION",null,"TABLE "]
[null,"Mot(s) contesté(s)",null,null,null,null,null,null,"Mot(s) contesté(s)"]
[null,"1)…………………….",null,"Admis","Non Admis",null,null,null,"1)…………………….",null,"Admis","Non Admis"]
[null,"2)…………………….",null,"Admis","Non Admis",null,null,null,"2)…………………….",null,"Admis","Non Admis"]
[null,"3)…………………….",null,"Admis","Non Admis",null,null,null,"3)…………………….",null,"Admis","Non Admis"]
[]
[{"$f":"Impression!$F$24 & \" - \" & Impression!$F$22","v":"Tournoi classique de - Club"},null,null,null,null,null,null,{"$f":"Impression!$F$24 & \" - \" & Impression!$F$22","v":"Tournoi classique de - Club"}]
[null,"BULLETIN DE CONTESTATION",null,"TABLE ",null,null,null,null,"BULLETIN DE CONTESTATION",null,"TABLE "]
[null,"Mot(s) contesté(s)",null,null,null,null,null,null,"Mot(s) contesté(s)"]
[null,"1)…………………….",null,"Admis","Non Admis",null,null,null,"1)…………………….",null,"Admis","Non Admis"]
[null,"2)…………………….",null,"Admis","Non Admis",null,null,null,"2)…………………….",null,"Admis","Non Admis"]
[null,"3)…………………….",null,"Admis","Non Admis",null,null,null,"3)…………………….",null,"Admis","Non Admis"]
[]
[{"$f":"Impression!$F$24 & \" - \" & Impression!$F$22","v":"Tournoi classique de - Club"},null,null,null,null,null,null,{"$f":"Impression!$F$24 & \" - \" & Impression!$F$22","v":"Tournoi classique de - Club"}]
[null,"BULLETIN DE CONTESTATION",null,"TABLE ",null,null,null,null,"BULLETIN DE CONTESTATION",null,"TABLE "]
[null,"Mot(s) contesté(s)",null,null,null,null,null,null,"Mot(s) contesté(s)"]
[null,"1)…………………….",null,"Admis","Non Admis",null,null,null,"1)…………………….",null,"Admis","Non Admis"]
[null,"2)…………………….",null,"Admis","Non Admis",null,null,null,"2)…………………….",null,"Admis","Non Admis"]
[null,"3)…………………….",null,"Admis","Non Admis",null,null,null,"3)…………………….",null,"Admis","Non Admis"]
[]
[{"$f":"Impression!$F$24 & \" - \" & Impression!$F$22","v":"Tournoi classique de - Club"},null,null,null,null,null,null,{"$f":"Impression!$F$24 & \" - \" & Impression!$F$22","v":"Tournoi classique de - Club"}]
[null,"BULLETIN DE CONTESTATION",null,"TABLE ",null,null,null,null,"BULLETIN DE CONTESTATION",null,"TABLE "]
[null,"Mot(s) contesté(s)",null,null,null,null,null,null,"Mot(s) contesté(s)"]
[null,"1)  ……………….",null,"Admis","Non Admis",null,null,null,"1)  ……………….",null,"Admis","Non Admis"]
[null,"2)  ……………….",null,"Admis","Non Admis",null,null,null,"2)  ……………….",null,"Admis","Non Admis"]
[null,"3)  ……………….",null,"Admis","Non Admis",null,null,null,"3)  ……………….",null,"Admis","Non Admis"]